Cogmind - Beta 15 @@@ ROGUE MODE // 2025.05.12 @ 16:15:42 Player: BVrutally Odd Result: Destroyed by S-27 Virus with Autogun Performance ------------- Evolutions (4) 2000 Regions Visited (10) 2000 Robots Destroyed (115) 575 Value Destroyed (4557) 4557 Prototype IDs (25) 500 Alien Tech Used (0) 0 Bonus (2213) 2213 TOTAL SCORE: 11845 Bonus ------- High Alert Combat Kills 589 Follower Combat Kills 181 Entered Garrisons 200 Used RIF Installer 500 Registered with UFD 300 Met Optimus in HQ 500 Met Data Miner 300 Friendly Fire -357 Cogmind --------- Core Integrity 0/850 Matter 300/300 Energy 79/100 System Corruption 8% Temperature Cool (0) Movement Core (500) Ox9 Location -5/Proximity Caves Parts ------- > --- POWER (1) -------- (None) > --- PROPULSION (4) --- Enhanced Flexi-carbon Leg Enhanced Flexi-carbon Leg > --- UTILITY (6) ------ Advanced Heat Sink Advanced Heat Sink Large Storage Unit Improved Reaction Control System Hacking Suite > --- WEAPON (4) ------- Phasing Sabre > --- INVENTORY (15) --- Light Angular Momentum Engine Advanced Heat Sink Advanced Heat Sink Advanced Heat Sink Advanced Heat Sink Advanced Energy Well (500) Advanced Terrain Scanner Seismic Detector Improved System Shield Remote Datajack Improved Plasma Cutter Dirty Bomb Trap Peak State ------------ > --- POWER ------------ Particle Reactor > --- PROPULSION ------- Medium Treads Medium Treads Improved Medium Treads Improved Medium Treads > --- UTILITY ---------- Advanced Heat Sink Advanced Cooling System Large Storage Unit Improved Light Armor Plating Improved Force Field Hacking Suite > --- WEAPON ----------- Phase Gun Quantum Rifle Phase Cannon KE Penetrator > --- INVENTORY -------- Light Angular Momentum Engine Light Treads Improved Treads Advanced Heat Sink Coolant Injector Advanced Terrain Scanner Seismic Detector Improved System Shield Hardcell Cannon Remote Datajack Improved Plasma Cutter Phasing Sabre Dirty Bomb Trap [Rating: 82] Favorites ----------- Power Particle Reactor Engine Ion Engine Reactor Particle Reactor Propulsion Light Treads Treads Light Treads Leg Carbon-fiber Leg Utility Advanced Heat Sink Device Advanced Heat Sink Storage Large Storage Unit Hackware Hacking Suite Protection Medium Armor Plating Weapon KE Penetrator Energy Gun Quantum Rifle Energy Cannon Beam Cannon Ballistic Gun KE Penetrator Ballistic Cannon Hardcell Cannon Special Weapon Remote Datajack Slashing Weapon Phasing Sabre Build | -11 -10 -10 -8 -6 -6 -6 -6 -6 -6 -5 ------- Run | Yrd Mat Sub Scr Fac Gar Fac Low Low Dat Pro Slots Evolved 8 | . . . . 8 . . . . . . Power . | . . . . . . . . . . . Propulsion 2 | . . . . 2 . . . . . . Utility 4 | . . . . 4 . . . . . . Weapon 2 | . . . . 2 . . . . . . Parts Attached 103 | 7 6 6 8 17 30 3 4 5 . 17 Power 9 | 1 . 1 2 2 2 . . . . 1 Engine 6 | 1 . 1 2 1 1 . . . . . Core . | . . . . . . . . . . . Reactor 3 | . . . . 1 1 . . . . 1 Propulsion 32 | 2 3 2 . 5 12 3 . 2 . 3 Treads 20 | . . 2 . 5 7 3 . 2 . 1 Leg 12 | 2 3 . . . 5 . . . . 2 Wheel . | . . . . . . . . . . . Hover . | . . . . . . . . . . . Flight . | . . . . . . . . . . . Utility 32 | 2 2 . 2 6 6 . 4 1 . 9 Device 23 | 1 1 . . 5 5 . 3 1 . 7 Storage 4 | 1 1 . 1 . . . . . . 1 Processor . | . . . . . . . . . . . Hackware 1 | . . . . 1 . . . . . . Protection 4 | . . . 1 . 1 . 1 . . 1 Artifact . | . . . . . . . . . . . Weapon 30 | 2 1 3 4 4 10 . . 2 . 4 Energy Gun 12 | . . 3 . 1 5 . . 1 . 2 Energy Cannon 4 | . 1 . 1 1 . . . 1 . . Ballistic Gun 10 | 2 . . 2 1 5 . . . . . Ballistic Cannon 1 | . . . . . . . . . . 1 Launcher . | . . . . . . . . . . . Special Weapon 2 | . . . 1 1 . . . . . . Impact Weapon . | . . . . . . . . . . . Slashing Weapon 1 | . . . . . . . . . . 1 Piercing Weapon . | . . . . . . . . . . . Special Melee Weapon . | . . . . . . . . . . . Unidentified Prototypes 4 | . . . 2 . . . . . . 2 Parts Lost 48 | . 1 4 . 5 14 . 1 4 . 19 Power 4 | . . 1 . . 2 . . . . 1 Propulsion 15 | . . . . 2 5 . . 2 . 6 Utility 11 | . 1 . . 2 1 . 1 . . 6 Weapon 18 | . . 3 . 1 6 . . 2 . 6 Highest Loss Streak 6 | . 1 2 . 2 6 . 1 3 . 5 To Critical Strikes 3 | . . . . 2 1 . . . . . Average Backups 10 | 2 8 8 8 11 10 13 12 13 14 12 Power . | . . . . . . 1 1 1 1 1 Propulsion 2 | 1 3 3 3 2 2 3 3 2 2 . Utility 4 | . 1 2 3 4 4 5 5 5 6 8 Weapon 2 | . 2 2 2 3 2 2 2 2 3 . Tool/Special . | . . . . . . . . . . . Unused Backups 11 | . . 1 4 2 1 2 . . . 1 Power . | . . . . . . . . . . . Propulsion 1 | . . . 1 . . . . . . . Utility 5 | . . . 1 2 1 . . . . 1 Weapon 4 | . . 1 1 . . 2 . . . . Tool/Special 1 | . . . 1 . . . . . . . Average Slot Usage (%) 93 | . 99 99 90 91 92 93 99 99 75 88 Engine 3 | . 14 13 4 3 2 . . . . . Reactor 2 | . . . . 2 3 6 6 6 6 6 Treads 22 | . . 27 28 25 17 26 26 26 26 12 Leg 4 | . 28 . . . 7 . . . . 10 Device 14 | . 13 14 6 17 18 13 19 20 20 19 Storage 9 | . 14 14 14 6 6 6 6 6 6 6 Hackware 3 | . . . . 2 6 6 6 6 6 6 Protection 5 | . . . 7 4 3 6 6 6 6 5 Energy Gun 7 | . . 18 . 3 10 13 13 12 1 9 Energy Cannon 7 | . 5 5 22 . 1 . . 2 . 3 Ballistic Gun 10 | . 22 4 5 21 11 13 13 9 . . Peak Build Rating 82 | 7 8 9 20 67 68 76 77 82 66 82 Average Rating 43 | 5 7 8 10 59 59 73 74 75 52 67 On Entrance 41 | . 7 8 9 20 54 68 76 77 73 66 Naked Turns . | . . . . . . . . . . . Heaviest Build 81 | 15 21 23 40 66 78 78 78 81 62 77 Greatest Support 108 | 20 20 40 40 81 88 108 108 108 106 106 Greatest Overweight (x) 2 | . 1 1 . . 1 . . . . 2 Average Overweight (x) . | . . . . . . . . . . . Largest Inventory Capacity 15 | 8 10 10 15 15 15 15 15 15 15 15 Average Capacity 13 | 7 9 10 11 15 15 15 15 15 15 15 Most Carried 15 | 4 10 10 15 15 15 15 15 15 15 15 Average Carried 11 | 2 8 9 10 12 12 14 13 14 15 13 Final Capacity 15 | 8 10 10 15 15 15 15 15 15 15 15 Final Carried 15 | 4 10 7 15 10 15 15 15 15 15 12 Class Distribution -------------------- 39% | Mutant 33% | Scavenger-Tank 11% | Scavenger-Gunner 7% | Scavenger-Scrapper 7% | Scavenger-Mutant Dominant Class ---------------- Mutant | -10/Materials Mutant | -10/Subcaves Mutant | -8/Scraptown Scavenger-Scrapper | -6/Factory Scavenger-Tank | -6/Garrison Scavenger-Tank | -6/Factory Scavenger-Tank | -6/Lower Caves Scavenger-Tank | -6/Lower Caves Scavenger-Mutant | -6/Data Miner Scavenger-Gunner | -5/Proximity Caves Resources | -11 -10 -10 -8 -6 -6 -6 -6 -6 -6 -5 ----------- Run | Yrd Mat Sub Scr Fac Gar Fac Low Low Dat Pro Matter Collected 3763 | 300 304 91 160 804 1137 128 214 264 . 361 Remotely . | . . . . . . . . . . . Salvage Created 6217 | 87 412 158 312 1735 1444 618 308 364 . 779 Parts 251 | 4 23 3 15 81 57 24 13 11 . 20 Haulers Intercepted 6 | . 2 . . 2 . 2 . . . . Recyclers Shooed 6 | . . . . 3 . 3 . . . . Parts Field Recycled . | . . . . . . . . . . . Retrieved Matter . | . . . . . . . . . . . Parts Self-Destructed 56 | . . 13 . . . . 13 9 . 21 Prevented . | . . . . . . . . . . . Kills | -11 -10 -10 -8 -6 -6 -6 -6 -6 -6 -5 ------- Run | Yrd Mat Sub Scr Fac Gar Fac Low Low Dat Pro Combat Hostiles Destroyed 85 | . 4 3 5 21 28 2 5 6 . 11 Melee 1 | . . . . 1 . . . . . . Guns 70 | . 4 3 2 19 24 2 5 4 . 7 Cannons 12 | . . . 3 1 4 . . 1 . 3 AOE 1 | . . . . . . . . . . 1 Classes Destroyed 21 | 2 3 1 5 5 3 . 2 . . . Worker 5 | . 3 . . 2 . . . . . . Builder 9 | . . . . 8 . 1 . . . . Tunneler 2 | 1 1 . . . . . . . . . Hauler 6 | . 2 . . 2 . 2 . . . . Recycler 5 | 1 1 . . 1 . 2 . . . . Minesweeper 1 | . . . . . . . 1 . . . Mechanic 1 | . . . . 1 . . . . . . Swarmer 15 | . . . . . 9 . 3 . . 3 Grunt 38 | . 4 . . 12 10 . 2 5 . 5 Brawler 2 | . . . . . 2 . . . . . Duelist 1 | . . . . . 1 . . . . . Sentry 7 | . . . . 1 2 2 . 1 . 1 Hunter 7 | . . . . 5 . . . . . 2 Programmer 6 | . . . . 3 3 . . . . . Enhanced Grunt 1 | . . . . . . . . . . 1 Subdweller 3 | . . 3 . . . . . . . . Bolteater 1 | . . . 1 . . . . . . . Federalist 1 | . . . 1 . . . . . . . Explorer 1 | . . . 1 . . . . . . . Scrapper 1 | . . . 1 . . . . . . . Samaritan 1 | . . . . . . . 1 . . . Guerrilla 1 | . . . . . 1 . . . . . Mutant 1 | . . . 1 . . . . . . . Best Kill Streak 8 | 2 2 1 4 8 7 4 3 3 . 3 Combat Bots Only 7 | . 2 1 4 5 7 2 3 3 . 3 Max Kills in Single Turn 4 | 1 1 1 1 4 2 1 2 1 . 1 Gunslinging 1 | . . . . . 1 . 1 . . . Exploded 1 | . . . . . . . . . . 1 Melee 1 | . . . . 1 . . . . . . Uniques/NPCs Destroyed . | . . . . . . . . . . . Combat | -11 -10 -10 -8 -6 -6 -6 -6 -6 -6 -5 -------- Run | Yrd Mat Sub Scr Fac Gar Fac Low Low Dat Pro Hostile Shots Fired 794 | . 36 35 15 170 210 30 27 101 . 170 Missed 211 | . 8 10 4 46 58 11 6 23 . 45 Hits 583 | . 28 25 11 124 152 19 21 78 . 125 Melee 11 | . . . . . 6 . . . . 5 Projectile 572 | . 28 25 11 124 146 19 21 78 . 120 Critical Strikes 21 | . . . . 4 6 . . 4 . 7 Damage Taken 8699 | . 309 580 122 1670 2319 206 195 1179 . 2119 Core 1055 | . 19 162 12 112 296 10 11 118 . 315 Absorbed by Shields 679 | . . . . 196 133 . 54 152 . 144 Regen/Repaired (Parts) 289 | . . . 269 20 . . . . . . Core Remaining (%) 61 | 100 . . 22 . . . . . . . Volleys Fired 344 | 5 43 20 13 66 100 11 31 22 . 33 Largest 4 | 2 2 2 2 4 4 4 4 4 . 4 Hottest 300 | 40 80 120 135 203 236 250 250 300 . 275 Shots Fired 900 | 10 86 37 26 219 273 35 61 70 . 83 Gun 789 | 10 83 27 10 213 243 35 61 57 . 50 Cannon 109 | . 3 10 16 4 30 . . 13 . 33 Launcher . | . . . . . . . . . . . Special 2 | . . . . 2 . . . . . . Kinetic 521 | 10 83 2 10 188 137 16 31 26 . 18 Thermal 370 | . 3 35 16 29 136 19 30 44 . 58 Explosive . | . . . . . . . . . . . Electromagnetic 7 | . . . . . . . . . . 7 Robot Hit Streak 37 | 3 12 37 13 11 13 14 10 9 . 8 Robot Miss Streak 5 | 5 3 1 2 5 5 1 3 2 . 4 Penetration Max 2 | . . . . 2 1 . . 1 . . Secondary Targets 11 | . . . . 3 6 . 1 1 . . Max Gunslinging Chain 1 | . . . . 1 1 . 1 1 . . Shots Hit Robots 555 | 3 52 35 19 132 147 25 27 52 . 63 Core Hits 253 | 3 18 8 9 67 71 14 11 12 . 40 Critical Kills 5 | . . . . 4 . . . 1 . . Critical Parts Destroyed 7 | . . . . 3 3 . 1 . . . Critical Strikes 19 | . . . . 7 7 . 2 2 . 1 Burn 6 | . . . . . 4 . 1 1 . . Destroy 12 | . . . . 7 3 . 1 1 . . Sever 1 | . . . . . . . . . . 1 Melee Attacks 8 | . . . . . . . . . . 8 Impact . | . . . . . . . . . . . Slashing 8 | . . . . . . . . . . 8 Piercing . | . . . . . . . . . . . Sneak Attacks . | . . . . . . . . . . . Combat Hostiles . | . . . . . . . . . . . Follow-up Attacks . | . . . . . . . . . . . Damage Inflicted 13298 | 36 672 504 409 3391 3360 646 696 1427 . 2157 Guns 10539 | 36 637 365 129 3050 2835 646 696 1183 . 962 Cannons 1850 | . 35 139 274 50 525 . . 244 . 583 Explosions 467 | . . . . 270 . . . . . 197 Melee 415 | . . . . . . . . . . 415 Ramming 27 | . . . 6 21 . . . . . . Kinetic 6551 | 36 637 26 129 2745 1630 186 290 500 . 372 Thermal 6253 | . 35 478 274 625 1730 460 406 927 . 1318 Explosive . | . . . . . . . . . . . Electromagnetic 52 | . . . . . . . . . . 52 Impact . | . . . . . . . . . . . Slashing 415 | . . . . . . . . . . 415 Piercing . | . . . . . . . . . . . Highest Corruption 8 | . . . . . 4 4 4 4 4 8 Average Corruption 4 | . . . . . 4 4 4 4 4 6 Corruption Purged . | . . . . . . . . . . . Corruption Blocked . | . . . . . . . . . . . Effects 102 | . . . . . 31 5 24 12 6 24 Message Errors 23 | . . . . . 8 . 5 4 3 3 Matter Fused 27 | . . . . . 10 2 7 3 1 4 Heat Flow Errors 15 | . . . . . 3 . 6 1 . 5 Energy Discharges 8 | . . . . . 4 1 1 1 . 1 Parts Rejected 1 | . . . . . . . . . . 1 Parts Fused 2 | . . . . . 1 . 1 . . . Data Loss (minor) 11 | . . . . . 3 . 2 2 1 3 Data Loss (major) 4 | . . . . . . . 2 . . 2 Misfires 5 | . . . . . 1 1 . . . 3 Alerts 2 | . . . . . . . . . 1 1 Weapon Failures 4 | . . . . . 1 1 . 1 . 1 Overload Shots . | . . . . . . . . . . . Overflow Damage 113 | . . . 9 . . . . 4 . 100 Projectiles 19 | . . . 9 . . . . 4 . 6 Explosions 49 | . . . . . . . . . . 49 Melee 45 | . . . . . . . . . . 45 Knockbacks 2 | . . . . . . . . . . 2 Impact . | . . . . . . . . . . . Kinetic 1 | . . . . . . . . . . 1 Secondary 1 | . . . . . . . . . . 1 Self-Inflicted Damage 70 | . . . . . . . . . . 70 Shots 1 | . . . . . . . . . . 1 Rammed 4 | . . . 1 3 . . . . . . Targets Rammed 5 | . . . 1 4 . . . . . . Kicked . | . . . . . . . . . . . Crushed 1 | . . . . 1 . . . . . . Highest Temperature 380 | . 5 1 152 380 228 138 244 308 . 300 Average Temperature 85 | . 2 1 67 106 71 47 77 92 . 92 Received Heat Transfer 2239 | . 147 114 12 346 582 12 17 556 . 453 Effects 1 | . . . . 1 . . . . . . Shutdowns 1 | . . . . 1 . . . . . . Siege Activations . | . . . . . . . . . . . Martial Activations . | . . . . . . . . . . . Shielding Activations . | . . . . . . . . . . . Robots Disrupted . | . . . . . . . . . . . Combat Hostiles . | . . . . . . . . . . . Robots Corrupted . | . . . . . . . . . . . Combat Hostiles . | . . . . . . . . . . . Parts Fried . | . . . . . . . . . . . Impact Corruptions . | . . . . . . . . . . . Robots Melted 1 | . . . . . . . . 1 . . Combat Hostiles 1 | . . . . . . . . 1 . . Parts Melted 16 | . . 2 1 . 5 . . 3 . 5 Heat Transferred 10310 | . 74 921 408 966 3182 629 629 1295 . 2206 Parts Sabotaged 2 | . . . . . . . . . . 2 Parts Stolen . | . . . . . . . . . . . Parts Stripped . | . . . . . . . . . . . Power Chain Reactions 1 | . . . . . . . . . . 1 Alert | -11 -10 -10 -8 -6 -6 -6 -6 -6 -6 -5 ------- Run | Yrd Mat Sub Scr Fac Gar Fac Low Low Dat Pro Maximum Alert Level 4 | . . . . 2 4 3 . . . . Low Security (%) 30 | 100 100 . . 67 . . . . . . Level 1 6 | . . . . 25 1 . . . . . Level 2 25 | . . . . 7 42 . . . . . Level 3 23 | . . . . . 30 100 . . . . Level 4 13 | . . . . . 24 . . . . . Level 5 . | . . . . . . . . . . . High Security . | . . . . . . . . . . . Max Security . | . . . . . . . . . . . Peak Influence 1537 | 5 42 . . 530 1537 821 . . . . Initial 806 | . . . . . 362 806 . . . . Average 574 | 1 7 . . 156 874 791 . . . . Influence Increases 3114 | 10 149 . . 892 1315 100 145 180 . 323 Destroy 0b10 Robot/C 1620 | . 80 . . 420 580 40 100 120 . 280 Destroy 0b10 Robot/NC 165 | 10 35 . . 75 10 25 5 . . 5 Destroy Leader 232 | . 24 . . 124 30 24 10 . . 20 Allied During Kill 46 | . . . . . 28 . . . . 18 Trap Triggered on 0b10 10 | . . . . . 10 . . . . . Successful Hack 34 | . 9 . . . 18 7 . . . . Disable Machine 195 | . . . . 135 60 . . . . . Anti-Garrison Action 450 | . . . . . 450 . . . . . Destroy Structure 242 | . 1 . . 108 129 4 . . . . Lose Combat Pursuer 120 | . . . . 30 . . 30 60 . . Influence Decreases 3114 | 10 149 . . 374 296 851 787 304 20 323 Entered New Map 1226 | . . . . . 156 731 291 28 20 . Time Decay 1500 | 10 139 . . 324 . 120 486 236 . 185 Lost Part 375 | . 10 . . 50 140 . 10 40 . 125 Lost Ally 13 | . . . . . . . . . . 13 Squads Dispatched 16 | . 1 . . 13 . 1 . . . 1 Investigation 5 | . 1 . . 3 . 1 . . . . Extermination 1 | . . . . 1 . . . . . . Reinforcement 3 | . . . . 3 . . . . . . Assault 1 | . . . . . . . . . . 1 Garrison 6 | . . . . 6 . . . . . . Intercept . | . . . . . . . . . . . Searches Triggered . | . . . . . . . . . . . Construction Impeded 1 | . . . . 1 . . . . . . Haulers Reinforced 1 | . . . . 1 . . . . . . Active Scanning Responses . | . . . . . . . . . . . Cargo Convoy Interrupts . | . . . . . . . . . . . Stealth | -11 -10 -10 -8 -6 -6 -6 -6 -6 -6 -5 --------- Run | Yrd Mat Sub Scr Fac Gar Fac Low Low Dat Pro Distress Signals 3 | . 2 . . 1 . . . . . . Communications Jammed . | . . . . . . . . . . . Distress Signals . | . . . . . . . . . . . Times Spotted 147 | . 17 5 15 35 31 7 7 10 . 20 Peak Tracking Total 9 | . 4 2 6 9 6 5 3 5 . 5 Tactical Retreats 7 | . . . . 1 . . 2 4 . . Traps | -11 -10 -10 -8 -6 -6 -6 -6 -6 -6 -5 ------- Run | Yrd Mat Sub Scr Fac Gar Fac Low Low Dat Pro Traps Triggered 7 | . . 1 . . 6 . . . . . Indirectly . | . . . . . . . . . . . Trap Hack Attempts . | . . . . . . . . . . . Triggered . | . . . . . . . . . . . Disarmed . | . . . . . . . . . . . Reprogrammed . | . . . . . . . . . . . Reused 2 | . . . . . 1 . 1 . . . Traps Extracted . | . . . . . . . . . . . Installed 5 | . . . . . 2 1 2 . . . Triggered 2 | . . . . . 1 . 1 . . . Most Traps Carried 4 | . . . 1 1 4 2 3 1 1 1 Machines | -11 -10 -10 -8 -6 -6 -6 -6 -6 -6 -5 ---------- Run | Yrd Mat Sub Scr Fac Gar Fac Low Low Dat Pro Machines Disabled 15 | . . . . 9 6 . . . . . Max in Single Turn 5 | . . . . 5 2 . . . . . Phase Generator 1 | . . . . . 1 . . . . . Machines Repaired . | . . . . . . . . . . . Machines Dismantled . | . . . . . . . . . . . Machines Sabotaged . | . . . . . . . . . . . Overloaded Fab Kills . | . . . . . . . . . . . Hacking | -11 -10 -10 -8 -6 -6 -6 -6 -6 -6 -5 --------- Run | Yrd Mat Sub Scr Fac Gar Fac Low Low Dat Pro Machines Accessed 27 | . 3 . 9 5 2 2 1 1 4 . Terminals 7 | . 3 . . 1 2 1 . . . . Fabricators . | . . . . . . . . . . . Repair Stations . | . . . . . . . . . . . Recycling Units 4 | . . . . 3 . 1 . . . . Scanalyzers . | . . . . . . . . . . . Garrison Access 1 | . . . . 1 . . . . . . Total Hacks 122 | . 10 . 66 8 3 3 1 1 30 . Successful 110 | . 3 . 66 5 2 2 1 1 30 . Failed 12 | . 7 . . 3 1 1 . . . . Catastrophic 1 | . 1 . . . . . . . . . Database Lockouts . | . . . . . . . . . . . Manual 11 | . 2 . . 6 . 3 . . . . Terminals 16 | . 10 . . 1 3 2 . . . . Fabricators . | . . . . . . . . . . . Repair Stations . | . . . . . . . . . . . Recycling Units 7 | . . . . 6 . 1 . . . . Scanalyzers . | . . . . . . . . . . . Garrison Access 1 | . . . . 1 . . . . . . Terminal Hacks 105 | . 3 . 66 1 2 1 1 1 30 . Record 77 | . . . 65 . . . . 1 11 . Part Schematic 10 | . . . . . . . . . 10 . Robot Schematic 6 | . . . . . . . . . 6 . Prototype ID Bank 4 | . 1 . . . . . . . 3 . Open Door 2 | . . . . . 1 . 1 . . . Branch Access Points 1 | . . . . . . 1 . . . . Emergency Access Points 1 | . . . . . 1 . . . . . Locate Traps 1 | . 1 . . . . . . . . . Hauler Manifests 2 | . 1 . . 1 . . . . . . Proto ID Catalog 1 | . . . 1 . . . . . . . Fabricator Hacks . | . . . . . . . . . . . Repair Station Hacks . | . . . . . . . . . . . Recycling Unit Hacks . | . . . . . . . . . . . Scanalyzer . | . . . . . . . . . . . Garrison Access Hacks 1 | . . . . 1 . . . . . . Unlock Access 1 | . . . . 1 . . . . . . Unauthorized Hacks 4 | . . . . 3 . 1 . . . . Terminals . | . . . . . . . . . . . Fabricators . | . . . . . . . . . . . Repair Stations . | . . . . . . . . . . . Recycling Units 4 | . . . . 3 . 1 . . . . Fedlink 4 | . . . . 3 . 1 . . . . Scanalyzers . | . . . . . . . . . . . Garrison Access . | . . . . . . . . . . . Data Cores Recovered 1 | . 1 . . . . . . . . . Used . | . . . . . . . . . . . Hacking Detections 6 | . 3 . . 1 2 . . . . . Full Trace Events . | . . . . . . . . . . . Feedback Events . | . . . . . . . . . . . Feedback Blocked . | . . . . . . . . . . . Robot Schematics Acquired 6 | . . . . . . . . . 6 . Robots Built . | . . . . . . . . . . . Authchips . | . . . . . . . . . . . Time . | . . . . . . . . . . . Total Robot Build Rating . | . . . . . . . . . . . Part Schematics Acquired 10 | . . . . . . . . . 10 . Parts Built . | . . . . . . . . . . . Authchips . | . . . . . . . . . . . Time . | . . . . . . . . . . . Total Part Build Rating . | . . . . . . . . . . . Parts Repaired . | . . . . . . . . . . . Time . | . . . . . . . . . . . Parts Recycled . | . . . . . . . . . . . Recycled Matter . | . . . . . . . . . . . Retrieved Matter . | . . . . . . . . . . . Retrieved Components . | . . . . . . . . . . . Parts Scanalyzed . | . . . . . . . . . . . Part Schematics Acquired . | . . . . . . . . . . . Parts Damaged . | . . . . . . . . . . . Bothacking | -11 -10 -10 -8 -6 -6 -6 -6 -6 -6 -5 ------------ Run | Yrd Mat Sub Scr Fac Gar Fac Low Low Dat Pro Used RIF Installer 1 | . . . . . 1 . . . . . Robots Hacked 1 | . . . . 1 . . . . . . Non-combat . | . . . . . . . . . . . Combat . | . . . . . . . . . . . Robot Hacks Applied . | . . . . . . . . . . . Manual 1 | . . . . 1 . . . . . . Relay Couplers Released . | . . . . . . . . . . . Fabnet Peak Effective % . | . . . . . . . . . . . Robots Rewired 1 | . . . . . . . . . . 1 Allies Hacked . | . . . . . . . . . . . Hacks Repelled . | . . . . . . . . . . . Allies | -11 -10 -10 -8 -6 -6 -6 -6 -6 -6 -5 -------- Run | Yrd Mat Sub Scr Fac Gar Fac Low Low Dat Pro Total Allies 4 | . . . . . 2 . . . . 2 Largest Group 2 | . . . . . 2 . . . . 1 Highest-Rated Group 96 | . . . . . 80 . . . . 96 Highest-Rated Ally 96 | . . . . . 51 . . . . 96 Total Orders . | . . . . . . . . . . . Ally Attacks 19 | . . . . . 6 . . . . 13 Total Damage 548 | . . . . . 181 . . . . 367 Kills 4 | . . . . . 1 . . . . 3 Allies Corrupted . | . . . . . . . . . . . Allies Melted 3 | . . . 3 . . . . . . . Intel | -11 -10 -10 -8 -6 -6 -6 -6 -6 -6 -5 ------- Run | Yrd Mat Sub Scr Fac Gar Fac Low Low Dat Pro Active Infowar (turns) 2113 | 31 365 . . . . . 1266 373 . 78 Terrain 552 | . . . . . . . 552 . . . Seismic 2113 | 31 365 . . . . . 1266 373 . 78 Robot Analysis Total . | . . . . . . . . . . . Derelict Logs Recovered 7 | . . 1 1 . . . 2 1 . 2 Drone Launches . | . . . . . . . . . . . Drone Recoveries . | . . . . . . . . . . . Exploration | -11 -10 -10 -8 -6 -6 -6 -6 -6 -6 -5 ------------- Run | Yrd Mat Sub Scr Fac Gar Fac Low Low Dat Pro Turns Passed 10897 | 109 602 588 3054 884 2389 258 1278 699 161 875 Spaces Moved 5795 | 69 287 302 1864 418 1241 121 650 367 97 379 Core 3 | 3 . . . . . . . . . . Treads 4717 | . . 298 1864 418 830 121 650 367 97 72 Legs 1075 | 66 287 4 . . 411 . . . . 307 Wheels . | . . . . . . . . . . . Hover . | . . . . . . . . . . . Flight . | . . . . . . . . . . . Fastest Speed 50 | 50 120 160 160 140 120 160 160 160 160 120 Average Speed 159 | 116 146 160 160 147 161 160 160 160 160 179 Slowest Speed 260 | 120 190 190 160 150 240 160 160 160 160 260 Overloaded Moves . | . . . . . . . . . . . Propulsion Burnouts . | . . . . . . . . . . . Robots Hopped 1 | . . . . . 1 . . . . . Potential Cave-ins 2 | . . . . . . . 2 . . . Cave-ins Triggered . | . . . . . . . . . . . Exploration Rate (%) 47 | 4 57 21 90 16 94 4 63 52 68 49 Regions Visited 10 Branch Regions 6 Pre-discovered Areas 7 | . . 2 . 1 . . 2 . 1 1 Known Exits Taken 2 | . . . . 1 . 1 . . . . Unknown Exits Taken 7 | 1 1 1 1 . . . 1 1 1 . Scrap Searched 7 | . . 1 4 . . . 1 1 . . Spaces Dug 21 | . . . . 2 . . 19 . . . Terrain Destroyed 311 | . . . 1 134 98 4 38 11 . 25 Melee . | . . . . . . . . . . . Projectile 182 | . . . 1 93 20 4 38 11 . 15 AOE 128 | . . . . 40 78 . . . . 10 Terrain Rammed . | . . . . . . . . . . . Walls Destroyed . | . . . . . . . . . . . Machines Disabled . | . . . . . . . . . . . Actions | -11 -10 -10 -8 -6 -6 -6 -6 -6 -6 -5 --------- Run | Yrd Mat Sub Scr Fac Gar Fac Low Low Dat Pro Total 6840 | 84 383 373 1916 614 1451 166 840 426 103 484 Wait 417 | . 42 38 . 89 25 20 144 28 . 31 Move 5783 | 68 286 301 1864 418 1236 120 649 366 96 379 Hop 1 | . . . . . 1 . . . . . Pick Up 58 | 4 4 2 13 6 16 4 4 2 . 3 Fast Attach 44 | 7 1 1 7 1 14 . . 1 3 9 Attach 35 | . . 3 . 10 9 . 2 3 . 8 Detach 3 | . . . 1 1 . . . . . 1 Swap 58 | . 5 5 5 11 11 3 6 4 . 8 Drop 60 | . 2 3 13 8 20 7 2 . 4 1 Fire 344 | 5 43 20 13 66 100 11 31 22 . 33 Melee 8 | . . . . . . . . . . 8 Ram . | . . . . . . . . . . . Kick . | . . . . . . . . . . . Crush 4 | . . . . 4 . . . . . . Escape Stasis 17 | . . . . . 17 . . . . . Rewire 3 | . . . . . . . . . . 3 Trap 5 | . . . . . 2 1 2 . . . Miscellaneous . | . . . . . . . . . . . Route ------- -11/Scrapyard -10/Materials (discovered 4 exits: [*Mat] / [*Min x2] / [*Sub]) -10/Subcaves -8/Scraptown (discovered 2 exits: *Fac x2) -6/Factory -6/Garrison (discovered 3 exits: *Fac x3) -6/Factory (discovered 2 exits: *Low x2) -6/Lower Caves -6/Lower Caves (discovered 2 exits: [*Fac] / *Dat) -6/Data Miner -5/Proximity Caves History --------- Turn | Location | Event 7 | -11/Scrapyard | Discovered new exit (range 15) 110 | -11/Scrapyard | Entered Materials 111 | -10/Materials | Met a group of wandering Federalists 111 | -10/Materials | Discovered new exit (range 8) 168 | -10/Materials | Discovered new exit (range 7) 302 | -10/Materials | Build established: Mutant 526 | -10/Materials | Discovered new exit (range 5) 639 | -10/Materials | Discovered new exit (range 15) 712 | -10/Materials | Entered Subcaves 713 | -10/Subcaves | Continued accompanying wandering Federalists (3) 713 | -10/Subcaves | Approached by a straggling Scientist 718 | -10/Subcaves | Learned location of Zion (-7) 818 | -10/Subcaves | Met a Zionite searching for "candidates" 852 | -10/Subcaves | Shifting Twisted Machinery released Flamer 861 | -10/Subcaves | Shifting Twisted Machinery released Sub. Laser 1101 | -10/Subcaves | Core integrity fell below 50% 1300 | -10/Subcaves | Entered Scraptown 1409 | -8/Scraptown | Heard Great Nut preacher, LISTEN AND RECITE! 1727 | -8/Scraptown | Visited Spacefarers 1849 | -8/Scraptown | Visited UFD Registry 1849 | -8/Scraptown | Registered with UFD as "Fluxplate" 1933 | -8/Scraptown | Visited Comm Corps 2009 | -8/Scraptown | Visited Cyclists 2025 | -8/Scraptown | Entered Cyclist Reading Room 2068 | -8/Scraptown | Visited Awakened 2084 | -8/Scraptown | Visited Shadow of the Wyrm 2145 | -8/Scraptown | Scanned Subdweller tech in exchange for log data 2149 | -8/Scraptown | Learned Factory emergency access door positions 2217 | -8/Scraptown | Guru changed UFD alias to "Wavebot" 2245 | -8/Scraptown | Discovered new exit (range 11) 2329 | -8/Scraptown | Visited CR-KLE's Repair Center 2341 | -8/Scraptown | Visited Fellowship of the Rings 2598 | -8/Scraptown | Visited LU-1G1's Boring Crew 2650 | -8/Scraptown | Visited Modified Component R&D 2724 | -8/Scraptown | Visited Science Guys 2780 | -8/Scraptown | Visited Observation Area 2849 | -8/Scraptown | Visited Junk Cannon Lab 2909 | -8/Scraptown | Found Prototype Special Weapon 2909 | -8/Scraptown | Identified Junk Cannon 2959 | -8/Scraptown | Visited Research Penetration Think Tank 3033 | -8/Scraptown | Visited Curators Association 3084 | -8/Scraptown | Visited Abandonware Association 3100 | -8/Scraptown | Learned abandonware demo "SHUTEYE.EXE" 3100 | -8/Scraptown | Learned abandonware demo "REVENGE.EXE" 3723 | -8/Scraptown | CR-KLE repaired 4 parts 4121 | -8/Scraptown | Met Optimus 4121 | -8/Scraptown | Accepted into 0bPrime 4194 | -8/Scraptown | Civil war broke out across Scraptown 4251 | -8/Scraptown | Found Scrap Suit 4283 | -8/Scraptown | Lost 9 allies 4341 | -8/Scraptown | Discovered new exit (range 5) 4346 | -8/Scraptown | Lost 5 allies 4354 | -8/Scraptown | Entered Factory 4354 | -6/Factory | Evolved 8 slots: Propulsion x2, Utility x4, Weapon x2 4455 | -6/Factory | Loaded intel: 8 recycling unit locations 4477 | -6/Factory | Garrison activated, responded to threat 4611 | -6/Factory | Build established: Scavenger-Scrapper 4832 | -6/Factory | Learned location of Protoforge (-3) 5001 | -6/Factory | Garrison activated, responded to threat 5238 | -6/Factory | Identified exit to Garrison 5238 | -6/Factory | Entered Garrison 5484 | -6/Garrison | Triggered checkpoint 5505 | -6/Garrison | Triggered checkpoint 5521 | -6/Garrison | Triggered checkpoint 5528 | -6/Garrison | Triggered checkpoint 5552 | -6/Garrison | Destroyed 7 combat bots 5576 | -6/Garrison | Lost 6 parts (1p2n1u2w) 5702 | -6/Garrison | Triggered checkpoint 5765 | -6/Garrison | Discovered new exit (range 14) 5792 | -6/Garrison | Attempted to access garrison exit controls, blocked by remote lockdown 5835 | -6/Garrison | Build established: Scavenger-Gunner 6009 | -6/Garrison | Discovered new exit (range 15) 6054 | -6/Garrison | Triggered checkpoint 6360 | -6/Garrison | Triggered checkpoint 6621 | -6/Garrison | Discovered new exit (range 13) 6668 | -6/Garrison | Attempted to access garrison exit controls, blocked by remote lockdown 6684 | -6/Garrison | Build established: Scavenger-Tank 6760 | -6/Garrison | Rescued a captive Derelict 6760 | -6/Garrison | Rescued a captive Derelict 6944 | -6/Garrison | Triggered checkpoint 7426 | -6/Garrison | Phase Generator disabled 7593 | -6/Garrison | Installed Relay Interface Framework 7627 | -6/Garrison | Entered Factory 7648 | -6/Factory | Identified exit to Lower Caves 7837 | -6/Factory | Loaded intel: 8 recycling unit locations 7885 | -6/Factory | Entered Lower Caves 8392 | -6/Lower Caves | Spotted B-75 Beast 8652 | -6/Lower Caves | Core integrity fell below 50% 9117 | -6/Lower Caves | Discovered new exit (range 8) 9163 | -6/Lower Caves | Entered another Lower Caves area 9338 | -6/Lower Caves | Discovered new exit (range 7) 9433 | -6/Lower Caves | Entered a destroyed Warlord outpost 9591 | -6/Lower Caves | Lost 3 parts (2n1w) 9621 | -6/Lower Caves | Attracted the attention of an 0b10 checkpoint 9800 | -6/Lower Caves | Discovered new exit (range 14) 9846 | -6/Lower Caves | Learned location of 1 exit from Factory 9862 | -6/Lower Caves | Entered Data Miner 9864 | -6/Data Miner | Discovered new exit (range 6) 9895 | -6/Data Miner | Met Data Miner 9935 | -6/Data Miner | Learned location of Section 7 (-3) 9935 | -6/Data Miner | Acquired the access code to Warlord's prototype stash 9957 | -6/Data Miner | Received God Mode back door access code from Data Miner 10023 | -6/Data Miner | Entered Proximity Caves 10094 | -5/Proximity Caves | Attracted the attention of an 0b10 outpost 10145 | -5/Proximity Caves | Escorted by Enhanced Grunt 10146 | -5/Proximity Caves | Lost 5 parts (2n2u1w) 10255 | -5/Proximity Caves | Core integrity fell below 20% 10290 | -5/Proximity Caves | Lost 4 parts (2n1u1w) 10386 | -5/Proximity Caves | Build established: Scavenger-Gunner 10508 | -5/Proximity Caves | Attracted the attention of an 0b10 checkpoint 10539 | -5/Proximity Caves | Learned Factory emergency access door positions 10558 | -5/Proximity Caves | Spotted B-75 Beast 10801 | -5/Proximity Caves | Lost 3 parts (1n2u) 10804 | -5/Proximity Caves | Build established: Scavenger-Mutant 10898 | -5/Proximity Caves | Destroyed by S-27 Virus with Autogun Last Messages --------------- 10762_ Slug penetrates Wall. 10763_ Gauss Rifle fries itself beyond repair. 10767_ Penetrated by Slug. 10770_ Lgt. Treads destroyed. 10770_ Penetrated by Slug. 10772_ Targeting Computer melted. 10772_ Gauss Rifle melted. 10772_ H-66 Slayer destroyed. 10783_ System corrupted: Heat flow error (+179). 10798_ System corrupted: FCS attempts to trigger Gatling Laser. 10798_ System corrupted: Gatling Laser misfires. 10826_ System corrupted: Heat flow error (+127). 10883_ Beamcaster destroyed. 10888_ S-27 Virus destroyed. 10889_ Lyr. Medium Armor Plating destroyed. 10889_ Imp. Treads destroyed. 10890_ Gatling Laser destroyed. 10890_ S-27 Virus Lgt. Nuclear Core severed. 10893_ Antimatter Reactor destroyed. Map ----- +----------------------------------------------------+ | ?????######??##??????????????????????????????????? | | ?????# ? #???????###????????????????????????? | | ?##?## " #?????### ##??????????????????????? | | ?# ## """" ####### ####???????????????????? | | ## " ? #???????????????????? | | # " ??? ###?????????????????? | | # """ ##???# ####??????????????? | | ?# """" #??## ## ##?????????????? | | ?# "" #???# " " # #?????????????? | | ??# #?????# """ "" # #?????????????? | | ### #??#### """" "" ##?????????????? | | #### ####### # "" " ##??????????????? | | "## #??## ## ## ##???????????????? | | ### ###?## ##????????????????? | | #??# ## ##?????????????????? | | ##?# ##??????????????????? | | ##### ##???????????????????? | | ##?# ##### ###????????????????????? | | ## ## #???## #??????????????????????? | | ## ##### #????### #??????????????????????? | | ?# ##???# #??????# #??????????????????????? | | ?## ##????# #??????# #??????????????????????? | | ??# ##?????# #??????# #??????????????????????? | | ??# ##??????# #??????# #??????????? ?????????? | | ??####???????# #??????# #?????# ????????? | | ????????????? ??????# @## #??????????? | | ????????????? ??????# s% #???????????? | | ????????????? ??????###ss #????????????? | | ????????????? ????????? s ###????????????? | | ????????????# ????????? #??????????????? | | ?????????????####????????? ????????????? | | ?????????????????????????? ??????????? | | ??????????????????????????# ##### ??????????? | | ???????????????????????????# #????? ??????????? | | ???????????????????????????? #?????? ???????????? | | ????????????????????????????##???????????????????? | | ?????????????????????????????????????????????????? | | ?????????????????????????????????????????????????? | | ?????????????????????????????????????????????????? | | ?????????????????????????????????????????????????? | | ?????????????????????????????????????????????????? | | ?????????????????????????????????????????????????? | | ?????????????????????????????????????????????????? | | ?????????????????????????????????????????????????? | | ?????????????????????????????????????????????????? | | ?????????????????????????????????????????????????? | | ?????????????????????????????????????????????????? | | ?????????????????????????????????????????????????? | | ?????????????????????????????????????????????????? | | ?????????????????????????????????????????????????? | +----------------------------------------------------+ Best States ------------- Heat Dissipation 113 Coolant Potential 65 Energy Generation 23 Energy Capacity 340 Matter Stores 300 Matter Capacity 300 Sight Range 16 Terrain Scan Range 20 Terrain Scan Density 10 Armor Coverage 600 Evasion (%) 55 Recoil Reduction 4 Particle Charging 25 Offensive Hacking 10 Item Schematics ----------------- Combat Drone Bay | -6/Data Miner | Free Lgt. Regenerative Plating | -6/Data Miner | Free Cld. Gravmag System | -6/Data Miner | Free Prc. Matter Filter | -6/Data Miner | Free Neutron Cannon | -6/Data Miner | Free Adv. VSS Leg | -6/Data Miner | Free Imp. Phase Shifter | -6/Data Miner | Free Hvy. Gauss Cannon | -6/Data Miner | Free Imp. Recalibrator | -6/Data Miner | Free Linear Accelerator | -6/Data Miner | Free Robot Schematics ------------------ S-27 Virus | -6/Data Miner | Free B-48 Gladiator | -6/Data Miner | Free A-15 Conveyor | -6/Data Miner | Free M-22 Extractor | -6/Data Miner | Free G-50 Soldier | -6/Data Miner | Free M-30 Cleanser | -6/Data Miner | Free Fabricated ------------ Nothing Repaired ---------- Nothing Alien Tech Used ----------------- None Achievements -------------- None Challenges ------------ None Game ------ Seed HardlightOpticalBasin Manual? 0 Play Time 01:09:03 Cumulative 263.1 hours Start 2025.05.12 @ 15:07:56 End 2025.05.12 @ 16:15:42 Sessions 1 Manual Loads 0 Difficulty Rogue Special Mode None Game No. 128 Rogue 69 Adventurer 16 Explorer 43 Win Type - Total 35 Types 21/5/3/1/0/1/2/1/1/0 Lore% 87 Gallery% 82 Achievement% 82 Wizard Run 0 Options --------- Layout 2 ASCII 0 Keyboard 0 Movement Mouse Keybinds 0 Fullscreen 1 Font 32/Tamsyn Map View 50x44 Zoom Use 0% Tactical HUD 1 Map Filters NONE Filters NONE Steam 1 RUN: a208a13f-7d91-4008-82f9-41e43c46bbda